bitfinex/quotes_BTCUSD_20250226
["timestamp","ask_amount","ask_price","bid_price","bid_amount"]
[1740572656684,0.01771966,88505.0,88504.0,0.004847]
[1740572657066,0.01771966,88505.0,88504.0,0.29513]
[1740572657274,0.01771966,88505.0,88504.0,1.16183]
[1740572657634,0.01771966,88505.0,88504.0,0.996347]
[1740572657810,0.01771966,88505.0,88504.0,1.007147]
[1740572658037,0.01771966,88505.0,88504.0,1.11600396]
[1740572658232,0.01771966,88505.0,88504.0,1.10760184]
[1740572658446,0.01771966,88505.0,88504.0,1.11130024]
[1740572658743,0.01771966,88505.0,88504.0,1.28778324]
[1740572658958,0.01771966,88505.0,88504.0,1.28303217]
[1740572659491,0.01771966,88505.0,88504.0,1.28079649]
[1740572659709,0.01771966,88505.0,88504.0,1.27812079]
[1740572659997,0.01771966,88505.0,88504.0,1.10863779]
[1740572660532,0.01771966,88505.0,88504.0,1.27812079]
[1740572660745,0.01771966,88505.0,88504.0,1.27797105]
[1740572660949,0.01771966,88505.0,88504.0,1.10848805]
[1740572661370,0.000849,88530.0,88504.0,1.10848805]
[1740572661568,0.169461,88516.0,88505.0,0.08535106]
[1740572661852,0.169461,88516.0,88504.0,0.57201354]
[1740572662043,0.225943,88518.0,88504.0,0.45815658]
[1740572662044,0.169459,88517.0,88504.0,0.45815658]
[1740572662270,0.225917,88528.0,88504.0,0.45815658]
[1740572662470,0.169454,88520.0,88504.0,0.45200358]
[1740572662669,0.225917,88528.0,88504.0,0.62148558]
[1740572662811,0.0004235,88511.0,88505.0,0.11385696]
[1740572663010,0.0004235,88511.0,88506.0,0.3251]
[1740572664493,0.0004235,88511.0,88506.0,0.3311]
[1740572664710,0.0004235,88511.0,88507.0,0.169476]
[1740572664903,0.0004235,88511.0,88506.0,0.3381]
[1740572665113,0.0004235,88511.0,88506.0,0.62143596]
[1740572665266,0.0004235,88511.0,88507.0,0.169478]
[1740572665652,0.0004235,88511.0,88508.0,0.169476]
[1740572666082,0.0004235,88511.0,88506.0,0.43895696]
[1740572666281,0.0004235,88511.0,88507.0,0.225969]
[1740572666481,0.0004235,88511.0,88508.0,0.08535106]
[1740572666713,0.0004235,88511.0,88508.0,0.25482606]
[1740572666928,0.0004235,88511.0,88509.0,0.3251]
[1740572667500,0.1153558,88522.0,88509.0,0.3251]
[1740572667737,0.169453,88520.0,88509.0,0.3251]
[1740572668084,0.169451,88521.0,88510.0,0.10526656]
[1740572668406,0.225933,88522.0,88510.0,0.10526656]
[1740572668607,0.225923,88526.0,88510.0,0.10526656]
[1740572668608,0.225914,88529.0,88510.0,0.10526656]
[1740572668809,0.00100004,88528.0,88511.0,0.3251]
[1740572669269,0.00100004,88528.0,88512.0,0.00158147]
[1740572669450,0.169454,88520.0,88513.0,0.0603427]
[1740572670444,0.169452,88521.0,88513.0,0.0603427]
[1740572670664,0.169452,88521.0,88511.0,0.3251]
[1740572671285,0.01771788,88519.0,88511.0,0.3251]
[1740572671480,0.169452,88521.0,88511.0,0.3251]
[1740572671879,0.225934,88522.0,88511.0,0.3251]
[1740572671880,0.16945,88522.0,88511.0,0.3251]
[1740572672219,0.169445,88524.0,88513.0,0.002]
[1740572672457,0.169445,88524.0,88514.0,0.07399343]
[1740572672584,0.225905,88533.0,88514.0,0.07399343]
[1740572672789,0.169444,88525.0,88514.0,0.07399343]
[1740572673199,0.09038476,88588.0,88514.0,0.07399343]
[1740572673409,0.169443,88525.0,88514.0,0.07399343]
[1740572673611,0.169445,88524.0,88515.0,0.06250574]
[1740572673817,0.169447,88523.0,88515.0,0.06250574]
[1740572674016,0.169447,88523.0,88515.0,0.06408723]
[1740572674556,0.01771754,88522.0,88515.0,0.06408723]
[1740572674717,0.01771754,88522.0,88516.0,0.05693392]
[1740572676551,0.18716654,88522.0,88516.0,0.05693392]
[1740572676747,0.01771754,88522.0,88516.0,0.05693392]
[1740572677352,0.01771754,88522.0,88516.0,0.05893392]
[1740572677552,0.01771754,88522.0,88516.0,0.004]
[1740572678885,0.01771754,88522.0,88518.0,0.245556]
[1740572679085,0.01771754,88522.0,88519.0,0.22594]
[1740572679285,0.01771754,88522.0,88521.0,0.169451]
[1740572679542,0.01771754,88522.0,88521.0,0.00158142]
[1740572679951,0.01771754,88522.0,88521.0,0.26484106]
[1740572680142,0.01771754,88522.0,88521.0,0.215751]
[1740572680499,0.01771754,88522.0,88521.0,0.217751]
[1740572680697,0.01771754,88522.0,88521.0,0.0483]
[1740572680907,0.01771754,88522.0,88521.0,0.3291]
[1740572681334,0.0004234,88523.0,88521.0,0.3271]
[1740572681506,0.0004234,88523.0,88521.0,0.3251]
[1740572681871,0.0004234,88523.0,88521.0,0.3281]
[1740572682075,0.169449,88522.0,88521.0,0.3281]
[1740572682869,0.0004234,88523.0,88521.0,0.3321]
[1740572683070,0.169449,88522.0,88521.0,0.3291]
[1740572683317,0.0004234,88523.0,88521.0,0.3321]
[1740572683523,0.169449,88522.0,88521.0,0.3321]
[1740572683726,0.169449,88522.0,88521.0,0.3251]
[1740572683862,0.169449,88522.0,88521.0,0.3281]
[1740572684066,0.0004234,88523.0,88521.0,0.3311]
[1740572684417,0.00472,88522.0,88521.0,0.3251]
[1740572684587,0.00472,88522.0,88521.0,0.3281]
[1740572684786,0.00472,88522.0,88521.0,0.3321]
[1740572686001,0.174169,88522.0,88521.0,0.3321]
[1740572686250,0.00472,88522.0,88521.0,0.3291]
[1740572686630,0.174169,88522.0,88521.0,0.3321]
[1740572687985,0.00472,88522.0,88521.0,0.3321]
[1740572688413,0.174169,88522.0,88521.0,0.3321]
[1740572688662,0.00472,88522.0,88521.0,0.3321]
[1740572688839,0.174169,88522.0,88521.0,0.3321]
[1740572689043,0.174593,88522.0,88521.0,0.3321]
[1740572689760,0.174593,88522.0,88521.0,0.3281]
[1740572689990,0.174593,88522.0,88521.0,0.3271]
[1740572690140,0.174593,88522.0,88521.0,0.3281]
[1740572690697,0.005144,88522.0,88521.0,0.3281]
[1740572694640,0.02286129,88522.0,88521.0,0.3281]
[1740572697826,0.02286129,88522.0,88521.0,0.1831]
[1740572698681,0.19231029,88522.0,88521.0,0.1831]
[1740572699996,0.20072803,88522.0,88521.0,0.003]
[1740572700238,0.50072803,88522.0,88521.0,0.003]
[1740572700451,0.469468,88512.0,88511.0,0.000848]
[1740572701274,0.469481,88505.0,88504.0,0.0001255]
[1740572701964,0.58020068,88505.0,88504.0,5e-07]
[1740572702165,0.16955,88469.0,88463.0,0.0822474]
[1740572702378,0.16955,88469.0,88468.0,0.0012658]
[1740572703677,0.16955,88469.0,88468.0,0.0052658]
[1740572703885,0.18859483,88469.0,88468.0,0.0032658]
[1740572704139,0.16955,88469.0,88468.0,0.0032658]
[1740572704367,0.01772797,88469.0,88468.0,0.01181712]
[1740572704566,0.01772797,88469.0,88468.0,0.17439997]
[1740572704694,0.01772797,88469.0,88468.0,0.17239997]
[1740572705099,0.01772797,88469.0,88468.0,0.18291997]
[1740572705320,0.01772797,88469.0,88468.0,0.1833378]
[1740572705525,0.01772797,88469.0,88468.0,0.3614378]
[1740572705698,0.01772797,88469.0,88468.0,0.3664378]
[1740572706136,0.01772797,88469.0,88468.0,0.3694378]
[1740572706514,0.01772797,88469.0,88468.0,0.3664378]
[1740572706942,0.01872797,88469.0,88468.0,0.5031378]
[1740572707314,0.01872797,88469.0,88468.0,0.57533884]
[1740572707688,0.01872797,88469.0,88468.0,0.56861842]
[1740572707891,0.01772797,88469.0,88468.0,0.56221842]
[1740572708102,0.01772797,88469.0,88468.0,0.55169842]
[1740572708232,0.01772797,88469.0,88468.0,0.56221842]
[1740572709344,0.01772797,88469.0,88468.0,0.56921842]
[1740572709454,0.01772797,88469.0,88468.0,0.56421842]
[1740572709663,0.01772797,88469.0,88468.0,0.55721842]
[1740572710054,0.01872797,88469.0,88468.0,0.57121842]
[1740572710246,0.01872797,88469.0,88468.0,0.56421842]
[1740572710485,0.01772797,88469.0,88468.0,0.55721842]
[1740572710730,0.18727797,88469.0,88468.0,0.1871]
[1740572711030,0.18727797,88469.0,88468.0,0.1801]
[1740572711274,0.18827797,88469.0,88468.0,0.1871]
[1740572711517,0.17055,88469.0,88468.0,0.1871]
[1740572711768,0.226055,88474.0,88468.0,0.007]
[1740572712229,0.226055,88474.0,88468.0,0.014]
[1740572712483,0.16955,88469.0,88468.0,0.014]
[1740572712738,0.16955,88469.0,88468.0,0.007]
[1740572712963,0.16955,88469.0,88468.0,0.011]
[1740572713194,0.16955,88469.0,88468.0,0.007424]
[1740572713430,0.46955,88469.0,88468.0,0.007424]
[1740572713699,0.51745,88469.0,88468.0,0.009424]
[1740572713967,0.51745,88469.0,88468.0,0.007424]
[1740572714162,0.51745,88469.0,88468.0,0.002424]
[1740572714643,0.53517843,88469.0,88468.0,0.009424]
[1740572715031,0.54353262,88469.0,88468.0,0.002424]
[1740572715235,0.54353262,88469.0,88468.0,0.003424]
[1740572715439,0.54353262,88469.0,88468.0,0.001424]
[1740572715624,0.49563262,88469.0,88468.0,0.001424]
[1740572717209,0.49563262,88469.0,88468.0,1e-06]
[1740572717210,0.61763262,88469.0,88468.0,1e-06]
[1740572717415,0.169608,88439.0,88438.0,0.1801]
[1740572717629,0.0732,88451.0,88432.0,0.0008478]
[1740572717759,0.169619,88433.0,88432.0,0.0008478]
[1740572717962,0.169619,88433.0,88432.0,0.00097331]
[1740572719360,0.169619,88433.0,88432.0,0.00297331]
[1740572719608,0.18735304,88433.0,88432.0,0.00297331]
[1740572721361,0.169619,88433.0,88432.0,0.00297331]
[1740572724386,0.18735452,88433.0,88432.0,0.00297331]
[1740572726583,0.18735452,88433.0,88432.0,0.00197331]
[1740572727619,0.18735452,88433.0,88432.0,0.00097331]
[1740572727778,0.18735452,88433.0,88432.0,0.00197331]
[1740572727981,0.18735452,88433.0,88432.0,0.00297331]
[1740572730216,0.01773552,88433.0,88432.0,0.00297331]
[1740572730439,0.18735452,88433.0,88432.0,0.00297331]
[1740572730554,0.17615295,88433.0,88432.0,0.00297331]
[1740572730963,0.169619,88433.0,88432.0,0.00297331]
[1740572731186,0.469619,88433.0,88432.0,0.00297331]
[1740572732218,0.469619,88433.0,88432.0,0.00197331]
[1740572732843,0.469619,88433.0,88432.0,0.00097331]
[1740572733364,0.471619,88433.0,88432.0,0.00097331]
[1740572734211,0.49135533,88433.0,88432.0,0.00097331]
[1740572734587,0.3,88426.0,88424.0,0.07469082]
[1740572734745,0.169635,88425.0,88424.0,0.07473255]
[1740572735508,0.169635,88425.0,88424.0,0.07334742]
[1740572735957,0.3,88426.0,88424.0,0.07334742]
[1740572736169,0.169634,88426.0,88424.0,0.07305333]
[1740572736370,0.226173,88428.0,88424.0,0.07205333]
[1740572736371,0.469631,88427.0,88424.0,0.07205333]
[1740572736577,0.3,88427.0,88424.0,0.07305333]
[1740572736785,0.469632,88427.0,88424.0,0.07105578]
[1740572736983,0.469632,88427.0,88424.0,0.07205578]
[1740572737136,0.3,88427.0,88424.0,0.07305578]
[1740572737342,0.169635,88425.0,88424.0,0.07005827]
[1740572737660,0.169635,88425.0,88424.0,0.00104173]
[1740572737852,0.169635,88425.0,88424.0,0.00027968]
[1740572738188,0.00048178,88424.0,88422.0,0.0008478]
[1740572739012,0.01821789,88424.0,88422.0,0.0008478]
[1740572739563,0.01821789,88424.0,88423.0,0.21702213]
[1740572739975,0.01821789,88424.0,88423.0,0.27785499]
[1740572740364,0.01821789,88424.0,88423.0,0.36105499]
[1740572741013,0.01821789,88424.0,88423.0,0.36305499]
[1740572741184,0.01821789,88424.0,88423.0,0.54315499]
[1740572741384,0.00048178,88424.0,88423.0,0.56613584]
[1740572741970,0.00148178,88424.0,88423.0,0.57313584]
[1740572742371,0.00148178,88424.0,88423.0,0.57213584]
[1740572742772,0.00148178,88424.0,88423.0,0.57913584]
[1740572743020,0.00148178,88424.0,88423.0,0.59969756]
[1740572743193,0.00012529,88425.0,88424.0,0.31167785]
[1740572743379,0.00012529,88425.0,88424.0,0.42553481]
[1740572743578,0.00012529,88425.0,88424.0,0.42453481]
[1740572744232,0.00012529,88425.0,88424.0,0.42405038]
[1740572744995,0.00012529,88425.0,88424.0,0.43105038]
[1740572745218,0.00112529,88425.0,88424.0,0.43105038]
[1740572746041,0.00112529,88425.0,88424.0,0.43805038]
[1740572746641,0.00012529,88425.0,88424.0,0.4395257]
[1740572746863,0.00112529,88425.0,88424.0,0.4395257]
[1740572747015,0.00112529,88425.0,88424.0,0.4465257]
[1740572747388,0.226047,88477.0,88432.0,0.169621]
[1740572747502,0.00092917,88433.0,88432.0,0.31184441]
[1740572747714,0.00092917,88433.0,88432.0,0.31026185]
[1740572747925,0.00092917,88433.0,88432.0,0.44400938]
[1740572748128,0.00092917,88433.0,88432.0,0.51769647]
[1740572748558,0.00092917,88433.0,88432.0,0.49769647]
[1740572749419,0.00092917,88433.0,88432.0,0.50469647]
[1740572749561,0.00092917,88433.0,88432.0,0.40642426]
[1740572749762,0.00092917,88433.0,88432.0,0.39942426]
[1740572750129,0.00092917,88433.0,88432.0,0.40642426]
[1740572750428,0.00092917,88433.0,88432.0,0.39942426]
[1740572750655,0.00092917,88433.0,88432.0,0.44041826]
[1740572751508,0.00092917,88433.0,88432.0,0.43341826]
[1740572751716,0.10025747,88483.0,88442.0,0.1291]
[1740572751916,0.10025747,88483.0,88466.0,0.0821]
[1740572751917,0.00126717,88468.0,88466.0,0.0821]
[1740572752273,0.00126717,88468.0,88467.0,0.1816823]
[1740572752466,0.00126717,88468.0,88467.0,0.3512363]
[1740572752645,0.00126717,88468.0,88467.0,0.349654]
[1740572752804,0.00126717,88468.0,88467.0,0.1801]
[1740572753012,0.00126717,88468.0,88467.0,0.3512363]
[1740572753354,0.00126717,88468.0,88467.0,0.349654]
[1740572753568,0.00126717,88468.0,88467.0,0.1801]
[1740572753766,0.00126717,88468.0,88467.0,0.18168228]
[1740572754534,0.00126717,88468.0,88467.0,0.1801]
[1740572755440,0.01899394,88468.0,88467.0,0.1801]
[1740572755563,0.01899394,88468.0,88467.0,0.35223631]
[1740572755774,0.01899394,88468.0,88467.0,0.350654]
[1740572755965,0.01899394,88468.0,88467.0,0.44510776]
[1740572756365,0.01899394,88468.0,88467.0,0.34965825]
[1740572756561,0.01899394,88468.0,88467.0,0.34866249]
[1740572756966,0.01899394,88468.0,88467.0,0.44270334]
[1740572757191,0.00126717,88468.0,88467.0,1.02490334]
[1740572757549,0.00126717,88468.0,88467.0,1.02590334]
[1740572757670,0.00126717,88468.0,88467.0,1.1397603]
[1740572758676,0.00126717,88468.0,88467.0,1.1407603]
[1740572759099,0.00126717,88468.0,88467.0,1.1387603]
[1740572759331,0.00126717,88468.0,88467.0,1.1507603]
[1740572759526,0.00126717,88468.0,88467.0,1.143211]
[1740572759731,0.00126717,88468.0,88467.0,1.138211]
[1740572759960,0.00126717,88468.0,88467.0,1.145211]
[1740572760174,0.00126717,88468.0,88467.0,1.46972946]
[1740572761452,0.00126717,88468.0,88467.0,1.58347699]
[1740572762179,0.00126717,88468.0,88467.0,1.48745446]
[1740572765062,0.00126717,88468.0,88467.0,1.62120199]
[1740572765063,1.7e-07,88468.0,88467.0,1.62120199]
[1740572765469,0.000848,88504.0,88501.0,0.0778]
[1740572765678,0.00097357,88504.0,88502.0,0.18912533]
[1740572766215,0.00097357,88504.0,88502.0,0.18754372]
[1740572766419,0.00097357,88504.0,88502.0,0.17718372]
[1740572767259,0.00097357,88504.0,88502.0,0.18318372]
[1740572767474,0.01869381,88504.0,88502.0,0.18318372]
[1740572767681,0.01869381,88504.0,88502.0,0.17918372]
[1740572767856,0.01869381,88504.0,88502.0,0.17718372]
[1740572768063,0.01869381,88504.0,88502.0,0.17918372]
[1740572768376,0.169485,88503.0,88502.0,0.17918372]
[1740572769000,0.169485,88503.0,88502.0,0.18118372]
[1740572769301,0.169485,88503.0,88502.0,0.17918372]
[1740572769477,0.24105788,88503.0,88502.0,0.17718372]
[1740572769697,0.517485,88503.0,88502.0,0.004]
[1740572770592,0.169514,88488.0,88487.0,0.17718372]
[1740572770797,0.4864654,88488.0,88487.0,0.17718372]
[1740572770996,0.469514,88488.0,88487.0,0.17718372]
[1740572771319,0.48723918,88488.0,88487.0,0.17718372]
[1740572771723,0.469514,88488.0,88487.0,0.17718372]
[1740572772104,0.3,88487.0,88470.0,0.18750372]
[1740572772354,0.3,88489.0,88470.0,0.18750372]
[1740572772556,0.169531,88480.0,88470.0,0.17718372]
[1740572772858,0.169535,88477.0,88470.0,0.17718372]
[1740572773056,0.169534,88478.0,88470.0,0.17718372]
[1740572773430,0.169533,88479.0,88470.0,0.17718372]
[1740572773609,0.169536,88477.0,88470.0,0.17718372]
[1740572773809,0.3,88483.0,88470.0,0.17718372]
[1740572774017,0.0526021,88482.0,88470.0,0.17718372]
[1740572774259,0.169547,88471.0,88470.0,0.17718372]
[1740572774455,0.169547,88471.0,88470.0,0.17918372]
[1740572774876,0.469547,88471.0,88470.0,0.17918372]
[1740572775659,0.48727466,88471.0,88470.0,0.17918372]
[1740572776071,0.54031553,88471.0,88470.0,0.18118372]
[1740572776278,0.54031553,88471.0,88470.0,0.17918372]
[1740572776972,0.03547819,88471.0,88467.0,0.0004242]
[1740572777519,0.03547819,88471.0,88470.0,0.006]
[1740572777877,0.50502519,88471.0,88470.0,0.003]
[1740572778710,0.33547819,88471.0,88470.0,0.003]
[1740572779110,0.03547819,88471.0,88467.0,0.0034242]
[1740572779486,0.03547819,88471.0,88467.0,0.0064242]
[1740572779688,0.03547819,88471.0,88467.0,0.0034242]
[1740572779887,0.20502619,88471.0,88470.0,0.003]
[1740572780092,0.03547819,88471.0,88470.0,0.003]
[1740572780913,0.52350939,88474.0,88470.0,0.003]
[1740572781112,0.169544,88473.0,88470.0,0.003]
[1740572781770,0.18701198,88474.0,88467.0,0.0004242]
[1740572781967,0.01747098,88474.0,88467.0,0.0004242]
[1740572782377,0.169539,88475.0,88467.0,0.0004242]
[1740572782585,0.16954,88475.0,88470.0,0.003]
[1740572782717,0.18744284,88475.0,88467.0,0.0004242]
[1740572782914,0.18744284,88475.0,88470.0,0.002]
[1740572783137,0.01790284,88475.0,88470.0,0.002]
[1740572783343,0.169539,88475.0,88470.0,0.002]
[1740572783543,0.3,88476.0,88470.0,0.002]
[1740572784068,0.00012553,88483.0,88482.0,0.169526]
[1740572784251,0.00012553,88483.0,88479.0,0.252431]
[1740572784456,0.00012553,88483.0,88480.0,0.00158204]
[1740572784655,0.00012553,88483.0,88479.0,0.0829]
[1740572786311,0.00012553,88483.0,88482.0,0.169526]
[1740572786534,0.00012553,88483.0,88482.0,0.17110805]
[1740572787111,0.00012553,88483.0,88482.0,0.34829177]
[1740572787428,0.00012553,88483.0,88482.0,0.39170972]
[1740572787837,0.00012553,88483.0,88482.0,0.22518372]
[1740572788557,0.00012553,88483.0,88482.0,0.19042372]
[1740572789009,0.00012553,88483.0,88482.0,0.18742372]
[1740572789210,0.00012553,88483.0,88482.0,0.19442372]
[1740572789428,0.00012553,88483.0,88482.0,0.20142372]
[1740572789695,0.00012553,88483.0,88482.0,0.19442372]
[1740572790554,0.00012553,88483.0,88482.0,0.20142372]
[1740572791642,0.225995,88498.0,88482.0,0.20142372]
[1740572791849,0.169513,88489.0,88482.0,0.20142372]
[1740572792058,0.225995,88498.0,88482.0,0.20142372]
[1740572792262,0.169506,88493.0,88482.0,0.20142372]
[1740572792462,0.169508,88492.0,88482.0,0.20142372]
[1740572792663,0.3,88500.0,88482.0,0.19442372]
[1740572792883,0.169519,88486.0,88482.0,0.18742372]
[1740572793090,0.06776444,88500.0,88482.0,0.19342372]
[1740572793292,0.169502,88495.0,88482.0,0.19342372]
[1740572793473,0.169507,88492.0,88482.0,0.18742372]
[1740572793654,0.169503,88494.0,88482.0,0.36194872]
[1740572793853,0.169501,88496.0,88484.0,0.169521]
[1740572794114,0.169497,88497.0,88485.0,0.169518]
[1740572794328,0.225996,88498.0,88484.0,0.169521]
[1740572794519,0.169501,88495.0,88484.0,0.16952]
[1740572794673,0.01673802,88500.0,88485.0,0.21434891]
[1740572794871,0.000848,88502.0,88485.0,0.04482891]
[1740572795103,0.169505,88493.0,88483.0,0.01024]
[1740572795427,0.000848,88502.0,88482.0,0.17718372]
[1740572795428,0.169517,88487.0,88482.0,0.17718372]
[1740572795632,0.3,88498.0,88482.0,0.18018372]
[1740572795783,0.01772341,88491.0,88482.0,0.18118372]
[1740572795986,0.169514,88489.0,88482.0,0.18118372]
[1740572796185,0.18723341,88491.0,88482.0,0.17818372]
[1740572796429,0.01772341,88491.0,88483.0,0.001]
[1740572796586,0.169512,88489.0,88483.0,0.001]
[1740572796999,0.169512,88489.0,88482.0,0.17760782]
[1740572797200,0.169519,88486.0,88482.0,0.17760782]
[1740572797423,0.16952,88485.0,88482.0,0.17960782]
[1740572797591,0.16952,88485.0,88482.0,0.0004241]
[1740572797793,0.16952,88485.0,88482.0,0.0034241]
[1740572798258,0.16951,88490.0,88482.0,0.00242817]
[1740572798483,0.169512,88489.0,88482.0,0.00242817]
[1740572798772,0.01772341,88491.0,88482.0,0.00143221]
[1740572799072,0.169513,88489.0,88483.0,0.003]
[1740572799275,0.24373641,88491.0,88482.0,0.004]
[1740572799490,0.169512,88490.0,88482.0,0.006]
[1740572799990,0.169512,88490.0,88477.0,0.169535]
[1740572800147,0.169512,88490.0,88482.0,0.002]
[1740572800560,0.169512,88490.0,88482.0,0.001]
[1740572800757,0.01772341,88491.0,88482.0,0.003]
[1740572801058,0.01772341,88491.0,88483.0,0.00158222]
[1740572801246,0.000848,88502.0,88485.0,0.226027]
[1740572801447,0.000848,88502.0,88491.0,0.169508]
[1740572801742,0.000848,88502.0,88489.0,0.169512]
[1740572801983,0.000848,88502.0,88485.0,0.17618779]
[1740572802314,0.169499,88496.0,88485.0,0.17618779]
[1740572802514,0.169497,88497.0,88486.0,0.169518]
[1740572802903,0.169497,88497.0,88485.0,0.17618779]
[1740572802904,0.169497,88497.0,88487.0,0.169516]
[1740572803402,0.01670041,88500.0,88486.0,0.169517]
[1740572803544,0.1695,88496.0,88485.0,0.34570679]
[1740572804176,0.1695,88496.0,88486.0,0.169518]
[1740572804377,0.01772297,88494.0,88487.0,0.169515]
[1740572804613,0.01772297,88494.0,88493.0,0.169504]
[1740572805153,0.01772297,88494.0,88493.0,0.245804]
[1740572805510,0.001,88497.0,88496.0,0.169499]
[1740572805729,0.000848,88502.0,88501.0,0.169489]
[1740572805946,0.000848,88502.0,88501.0,0.17107064]
[1740572806402,0.000848,88502.0,88501.0,0.24627064]
[1740572806611,0.01581084,88508.0,88507.0,0.169478]
[1740572807033,0.000424,88522.0,88508.0,0.225966]
[1740572807283,0.00054948,88522.0,88510.0,0.124]
[1740572807487,0.00054948,88522.0,88521.0,0.169451]
[1740572807701,0.00054948,88522.0,88515.0,0.225949]
[1740572807912,0.00054948,88522.0,88511.0,0.17618779]
[1740572808114,0.00054948,88522.0,88511.0,0.34565779]
[1740572808504,0.00054948,88522.0,88511.0,0.40214779]
[1740572808708,0.00054948,88522.0,88513.0,0.169465]
[1740572808872,0.169468,88512.0,88511.0,0.17618779]
[1740572809071,0.04564948,88522.0,88511.0,0.17618779]
[1740572809072,0.00054948,88522.0,88511.0,0.17618779]
[1740572809271,0.00054948,88522.0,88511.0,0.17818779]
[1740572809731,0.169468,88512.0,88511.0,0.17818779]
[1740572810378,0.169468,88512.0,88511.0,0.18118779]
[1740572810502,0.18718847,88512.0,88511.0,0.18118779]
[1740572811434,0.169468,88512.0,88511.0,0.18118779]
[1740572811637,0.169468,88512.0,88511.0,0.18218779]
[1740572811818,0.169468,88512.0,88511.0,0.18118779]
[1740572812218,0.169468,88512.0,88511.0,0.18218779]
[1740572812420,0.169468,88512.0,88511.0,0.17718779]
[1740572812740,0.169468,88512.0,88511.0,0.005]
[1740572813309,0.169468,88512.0,88511.0,0.001]
[1740572813518,0.169468,88512.0,88511.0,0.002]
[1740572815865,0.18718877,88512.0,88511.0,0.002]
[1740572819084,0.48718877,88512.0,88511.0,0.002]
[1740572819353,0.65532242,88512.0,88511.0,0.002]
[1740572819542,0.63925767,88512.0,88511.0,0.002]
[1740572820106,0.63925767,88512.0,88511.0,0.001]
[1740572820936,0.16952,88485.0,88484.0,0.17618779]
[1740572821189,0.169524,88483.0,88482.0,0.0008482]
[1740572821943,0.3,88497.0,88482.0,0.0008482]
[1740572822149,0.169516,88487.0,88482.0,0.0008482]
[1740572822349,0.169516,88487.0,88485.0,0.000848]
[1740572822543,0.3,88497.0,88485.0,0.000848]
[1740572822951,0.16951,88490.0,88485.0,0.000848]
[1740572823157,0.169515,88488.0,88485.0,0.000848]
[1740572823375,0.01612767,88490.0,88485.0,0.000848]
[1740572823573,0.526008,88493.0,88485.0,0.003848]
[1740572823775,0.169517,88487.0,88485.0,0.003848]
[1740572823983,0.169518,88486.0,88485.0,0.003848]
[1740572824921,0.169518,88486.0,88485.0,0.000848]
[1740572825223,0.169518,88486.0,88485.0,0.003848]
[1740572825429,0.169516,88487.0,88485.0,0.003848]
[1740572825632,0.169516,88487.0,88485.0,0.004848]
[1740572825832,0.0177247,88486.0,88485.0,0.004848]
[1740572826169,0.0177247,88486.0,88485.0,0.254968]
[1740572826342,0.0177247,88486.0,88485.0,0.085448]
[1740572826597,0.0177247,88486.0,88485.0,0.250968]
[1740572826750,0.0177247,88486.0,88485.0,0.084448]
[1740572827358,0.0177247,88486.0,88485.0,0.249968]
[1740572827533,0.0177247,88486.0,88485.0,0.252968]
[1740572827870,0.0177247,88486.0,88485.0,0.249968]
[1740572828082,0.0177247,88486.0,88485.0,0.246968]
[1740572828283,0.0177247,88486.0,88485.0,0.254968]
[1740572829028,0.0177247,88486.0,88485.0,0.246968]
[1740572829404,0.16949,88501.0,88492.0,0.169505]
[1740572829662,0.01772341,88505.0,88492.0,0.0251953]
[1740572829880,0.01772341,88505.0,88492.0,0.17618779]
[1740572830279,0.01772341,88505.0,88500.0,0.16949]
[1740572830790,0.31772341,88505.0,88498.0,0.169495]
[1740572830992,0.31772341,88505.0,88492.0,0.17618779]
[1740572831205,0.169491,88500.0,88492.0,0.17618779]
[1740572831431,0.3,88503.0,88492.0,0.17618779]
[1740572832041,0.225983,88502.0,88492.0,0.17618779]
[1740572832382,0.169504,88493.0,88492.0,0.17818779]
[1740572832764,0.169504,88493.0,88492.0,0.17618779]
[1740572833336,0.169518,88486.0,88485.0,0.077448]
[1740572833657,0.226021,88488.0,88485.0,0.077448]
[1740572833790,0.169518,88486.0,88485.0,0.000848]
[1740572833991,0.225994,88498.0,88485.0,0.000848]
[1740572833992,0.169513,88489.0,88485.0,0.000848]
[1740572834449,0.225994,88498.0,88485.0,0.000848]
[1740572834749,0.169518,88486.0,88485.0,0.000848]
[1740572835045,0.169518,88486.0,88485.0,0.005848]
[1740572835394,0.169518,88486.0,88485.0,0.000848]
[1740572836212,0.169518,88486.0,88485.0,0.003848]
[1740572836839,0.169518,88486.0,88485.0,0.006848]
[1740572837984,0.01772385,88489.0,88485.0,0.006848]
[1740572838186,0.18723685,88489.0,88485.0,0.006848]
[1740572838790,0.169514,88488.0,88485.0,0.003848]
[1740572839025,0.169515,88488.0,88485.0,0.000848]
[1740572839253,0.01772385,88489.0,88485.0,0.002848]
[1740572839482,0.01772385,88489.0,88485.0,0.004848]
[1740572839729,0.01772385,88489.0,88485.0,0.000848]
[1740572839932,0.01772385,88489.0,88485.0,0.004848]
[1740572841100,0.01772385,88489.0,88485.0,0.002848]
[1740572841302,0.169509,88491.0,88485.0,0.000848]
[1740572841501,0.169509,88491.0,88485.0,0.004848]
[1740572841723,0.169509,88491.0,88485.0,0.00385207]
[1740572841936,0.3,88502.0,88485.0,0.00385207]
[1740572842294,0.16951,88490.0,88485.0,0.00100406]
[1740572842456,0.226016,88490.0,88485.0,0.001]
[1740572842671,0.169512,88489.0,88485.0,0.001]
[1740572842871,0.3,88496.0,88482.0,0.00065214]
[1740572843179,0.169514,88489.0,88482.0,0.00065214]
[1740572843558,0.169511,88490.0,88482.0,0.00065214]
[1740572843775,0.169512,88489.0,88482.0,0.00065214]
[1740572843965,0.169512,88490.0,88482.0,0.00065214]
[1740572844577,0.01772394,88489.0,88482.0,0.00065214]
[1740572844885,0.18723794,88489.0,88482.0,0.00065214]
[1740572845066,0.18723794,88489.0,88485.0,0.002]
[1740572845268,0.18723794,88489.0,88482.0,0.00065214]
[1740572845435,0.18723794,88489.0,88482.0,0.00165214]
[1740572846034,0.18723794,88489.0,88482.0,0.00065214]
[1740572846206,0.01772394,88489.0,88482.0,0.00265214]
[1740572846368,0.01772394,88489.0,88485.0,0.002]
[1740572846568,0.18723794,88489.0,88485.0,0.002848]
[1740572846902,0.01772394,88489.0,88485.0,0.002848]
[1740572847455,0.18723594,88489.0,88485.0,0.000848]
[1740572848062,0.01772394,88489.0,88485.0,0.000848]